[Event "December 5 Early 2023"]
[Site "https://www.chess.com"]
[Date "2023.12.05"]
[Round "4"]
[White "Nikulina, Alena"]
[Black "Colonetti, Fabio"]
[Result "1/2-1/2"]
[Board "226"]
[TimeControl "180+1"]
[WhiteFideId "4172051"]
[BlackFideId "897612"]
[WhiteElo "2024"]
[BlackElo "2278"]
[WhiteTeam "RUS"]
[BlackTeam "ITA"]
[WhiteClock "0:00:25"]
[BlackClock "0:00:49"]

1. e4 {[%clk 0:02:59]}  c5 {[%clk 0:02:59]} 2. Nf3 {[%clk 0:02:59]}  a6 {[%clk 0:02:59]} 3. c3 {[%clk 0:02:56]}  e6 {[%clk 0:02:57]} 4. d4 {[%clk 0:02:56]}  d5 {[%clk 0:02:57]} 5. e5 {[%clk 0:02:53]}  Bd7 {[%clk 0:02:57]} 6. Bd3 {[%clk 0:02:51]}  cxd4 {[%clk 0:02:57]} 7. cxd4 {[%clk 0:02:51]}  Bb5 {[%clk 0:02:57]} 8. O-O {[%clk 0:02:51]}  Bxd3 {[%clk 0:02:55]} 9. Qxd3 {[%clk 0:02:51]}  Nc6 {[%clk 0:02:55]} 10. a3 {[%clk 0:02:48]}  Nh6 {[%clk 0:02:49]} 11. Bxh6 {[%clk 0:02:39]}  gxh6 {[%clk 0:02:48]} 12. Kh1 {[%clk 0:02:39]}  Bg7 {[%clk 0:02:47]} 13. Nbd2 {[%clk 0:02:36]}  O-O {[%clk 0:02:45]} 14. b4 {[%clk 0:02:36]}  f6 {[%clk 0:02:44]} 15. exf6 {[%clk 0:02:24]}  Qxf6 {[%clk 0:02:43]} 16. Nb3 {[%clk 0:02:21]}  Rae8 {[%clk 0:02:26]} 17. Rad1 {[%clk 0:01:53]}  h5 {[%clk 0:02:21]} 18. Nc5 {[%clk 0:01:52]}  h4 {[%clk 0:02:19]} 19. h3 {[%clk 0:01:52]}  Re7 {[%clk 0:02:11]} 20. Rfe1 {[%clk 0:01:44]}  Qf4 {[%clk 0:02:05]} 21. Nxe6 {[%clk 0:01:37]}  Rxe6 {[%clk 0:01:45]} 22. Rxe6 {[%clk 0:01:37]}  Rc8 {[%clk 0:01:28]} 23. Rde1 {[%clk 0:00:58]}  Nxd4 {[%clk 0:01:18]} 24. Nxd4 {[%clk 0:00:52]}  Bxd4 {[%clk 0:01:18]} 25. Re8+ {[%clk 0:00:47]}  Rxe8 {[%clk 0:01:17]} 26. Rxe8+ {[%clk 0:00:47]}  Kf7 {[%clk 0:01:17]} 27. Rh8 {[%clk 0:00:28]}  Qc1+ {[%clk 0:01:14]} 28. Kh2 {[%clk 0:00:27]}  Qf4+ {[%clk 0:00:58]} 29. Kh1 {[%clk 0:00:25]}  Qc1+ {[%clk 0:00:57]} 30. Kh2 {[%clk 0:00:25]}  Qf4+ {[%clk 0:00:49]} 31. Kh1 {[%clk 0:00:25]} 1/2-1/2

[Event "December 5 Early 2023"]
[Site "https://www.chess.com"]
[Date "2023.12.05"]
[Round "4"]
[White "Obon Temprano, Sergi"]
[Black "Gulamirian, Korun"]
[Result "0-1"]
[Board "227"]
[TimeControl "180+1"]
[WhiteFideId "2226545"]
[BlackFideId "4144899"]
[WhiteElo "2267"]
[BlackElo "2005"]
[WhiteTeam "ESP"]
[BlackTeam "RUS"]
[WhiteClock "0:01:43"]
[BlackClock "0:00:29"]

1. d4 {[%clk 0:03:00]}  Nf6 {[%clk 0:02:58]} 2. Nf3 {[%clk 0:03:01]}  g6 {[%clk 0:02:56]} 3. c3 {[%clk 0:03:01]}  Bg7 {[%clk 0:02:56]} 4. Bg5 {[%clk 0:03:01]}  O-O {[%clk 0:02:55]} 5. Nbd2 {[%clk 0:03:01]}  d5 {[%clk 0:02:52]} 6. e3 {[%clk 0:02:56]}  h6 {[%clk 0:02:47]} 7. Bh4 {[%clk 0:02:55]}  Bg4 {[%clk 0:02:44]} 8. Be2 {[%clk 0:02:55]}  Bxf3 {[%clk 0:02:34]} 9. Bxf3 {[%clk 0:02:54]}  g5 {[%clk 0:02:35]} 10. Bg3 {[%clk 0:02:54]}  Nc6 {[%clk 0:02:32]} 11. O-O {[%clk 0:02:54]}  e6 {[%clk 0:02:29]} 12. e4 {[%clk 0:02:53]}  dxe4 {[%clk 0:02:26]} 13. Nxe4 {[%clk 0:02:53]}  Nxe4 {[%clk 0:02:25]} 14. Bxe4 {[%clk 0:02:54]}  Ne7 {[%clk 0:02:24]} 15. Bc2 {[%clk 0:02:51]}  f5 {[%clk 0:02:23]} 16. f4 {[%clk 0:02:49]}  g4 {[%clk 0:02:22]} 17. Bh4 {[%clk 0:02:47]}  Qd7 {[%clk 0:02:19]} 18. Qe2 {[%clk 0:02:47]}  Ng6 {[%clk 0:02:14]} 19. Bg3 {[%clk 0:02:40]}  h5 {[%clk 0:01:57]} 20. Bb3 {[%clk 0:02:32]}  Rae8 {[%clk 0:01:51]} 21. Be1 {[%clk 0:02:28]}  Kh8 {[%clk 0:01:45]} 22. Bd2 {[%clk 0:02:28]}  h4 {[%clk 0:01:21]} 23. Rae1 {[%clk 0:02:27]}  Rf6 {[%clk 0:01:16]} 24. Qc4 {[%clk 0:02:19]}  b5 {[%clk 0:01:09]} 25. Qc5 {[%clk 0:02:10]}  Bf8 {[%clk 0:01:05]} 26. Qxa7 {[%clk 0:02:02]}  h3 {[%clk 0:00:43]} 27. g3 {[%clk 0:01:59]}  Qc6 {[%clk 0:00:33]} 28. Be3 {[%clk 0:01:43]}  Qg2# {[%clk 0:00:29]} 0-1

[Event "December 5 Early 2023"]
[Site "https://www.chess.com"]
[Date "2023.12.05"]
[Round "4"]
[White "Llari, Marc"]
[Black "Saim, Mohamed Ilias"]
[Result "1-0"]
[Board "228"]
[TimeControl "180+1"]
[WhiteFideId "651044269"]
[BlackFideId "7900465"]
[WhiteElo "2266"]
[BlackElo "1999"]
[WhiteTeam "FRA"]
[BlackTeam "ALG"]
[WhiteClock "0:00:39"]
[BlackClock "0:00:00"]

1. d4 {[%clk 0:03:00]}  Nf6 {[%clk 0:02:57]} 2. Nf3 {[%clk 0:02:59]}  e6 {[%clk 0:02:54]} 3. Bg5 {[%clk 0:02:59]}  d5 {[%clk 0:02:50]} 4. e3 {[%clk 0:02:59]}  c5 {[%clk 0:02:45]} 5. Nbd2 {[%clk 0:02:55]}  Nc6 {[%clk 0:02:45]} 6. c3 {[%clk 0:02:55]}  h6 {[%clk 0:02:39]} 7. Bh4 {[%clk 0:02:54]}  Be7 {[%clk 0:02:36]} 8. Bd3 {[%clk 0:02:53]}  a6 {[%clk 0:02:32]} 9. O-O {[%clk 0:02:53]}  b5 {[%clk 0:02:31]} 10. a4 {[%clk 0:02:52]}  b4 {[%clk 0:02:29]} 11. e4 {[%clk 0:02:12]}  dxe4 {[%clk 0:02:21]} 12. Nxe4 {[%clk 0:02:04]}  cxd4 {[%clk 0:02:02]} 13. cxd4 {[%clk 0:02:03]}  O-O {[%clk 0:01:54]} 14. Nxf6+ {[%clk 0:01:41]}  Bxf6 {[%clk 0:01:53]} 15. Bxf6 {[%clk 0:01:41]}  Qxf6 {[%clk 0:01:51]} 16. Be4 {[%clk 0:01:38]}  Bb7 {[%clk 0:01:43]} 17. Ne5 {[%clk 0:01:36]}  Nxe5 {[%clk 0:01:24]} 18. Bxb7 {[%clk 0:01:32]}  Ra7 {[%clk 0:01:13]} 19. dxe5 {[%clk 0:01:31]}  Qxe5 {[%clk 0:01:10]} 20. Bf3 {[%clk 0:01:29]}  Qxb2 {[%clk 0:01:01]} 21. a5 {[%clk 0:01:22]}  Rb8 {[%clk 0:00:55]} 22. Qa4 {[%clk 0:01:21]}  Qc3 {[%clk 0:00:47]} 23. Rfc1 {[%clk 0:01:19]}  Qf6 {[%clk 0:00:44]} 24. Rab1 {[%clk 0:01:15]}  Qe7 {[%clk 0:00:37]} 25. g3 {[%clk 0:01:06]}  Rd7 {[%clk 0:00:33]} 26. Rb2 {[%clk 0:01:03]}  Rd3 {[%clk 0:00:27]} 27. Kg2 {[%clk 0:01:01]}  Ra3 {[%clk 0:00:17]} 28. Qxa3 {[%clk 0:00:54]}  bxa3 {[%clk 0:00:17]} 29. Rxb8+ {[%clk 0:00:55]}  Kh7 {[%clk 0:00:17]} 30. Rb6 {[%clk 0:00:51]}  a2 {[%clk 0:00:09]} 31. Rxa6 {[%clk 0:00:46]}  Qa3 {[%clk 0:00:07]} 32. Rf1 {[%clk 0:00:41]}  a1=Q {[%clk 0:00:03]} 33. Rxa1 {[%clk 0:00:41]}  Qxa1 {[%clk 0:00:03]} 34. Ra8 {[%clk 0:00:42]}  Kg6 {[%clk 0:00:02]} 35. a6 {[%clk 0:00:42]}  h5 {[%clk 0:00:01]} 36. a7 {[%clk 0:00:39]}  h4 {[%clk 0:00:00]} 37. gxh4 {[%clk 0:00:39]} 1-0

[Event "December 5 Early 2023"]
[Site "https://www.chess.com"]
[Date "2023.12.05"]
[Round "4"]
[White "Phillips, Rene"]
[Black "BestestBP"]
[Result "0-1"]
[Board "230"]
[TimeControl "180+1"]
[WhiteFideId "2056275"]
[WhiteElo "1903"]
[BlackElo "2054"]
[WhiteTeam "USA"]
[WhiteClock "0:00:00"]
[BlackClock "0:00:17"]

1. Nf3 {[%clk 0:02:54]}  Nf6 {[%clk 0:02:59]} 2. d4 {[%clk 0:02:54]}  e6 {[%clk 0:02:59]} 3. Bf4 {[%clk 0:02:54]}  d5 {[%clk 0:02:55]} 4. e3 {[%clk 0:02:55]}  c5 {[%clk 0:02:47]} 5. c3 {[%clk 0:02:54]}  Nc6 {[%clk 0:02:48]} 6. Nbd2 {[%clk 0:02:53]}  Nh5 {[%clk 0:02:48]} 7. Bg3 {[%clk 0:02:51]}  g6 {[%clk 0:02:42]} 8. Bd3 {[%clk 0:02:47]}  Qb6 {[%clk 0:02:42]} 9. Rb1 {[%clk 0:02:45]}  Bg7 {[%clk 0:02:38]} 10. Bd6 {[%clk 0:02:43]}  cxd4 {[%clk 0:02:30]} 11. exd4 {[%clk 0:02:41]}  Nxd4 {[%clk 0:02:23]} 12. Ba3 {[%clk 0:02:36]}  Nb5 {[%clk 0:01:57]} 13. O-O {[%clk 0:01:49]}  Nxa3 {[%clk 0:01:42]} 14. bxa3 {[%clk 0:01:39]}  Qc7 {[%clk 0:01:41]} 15. Qa4+ {[%clk 0:01:16]}  Bd7 {[%clk 0:01:39]} 16. Bb5 {[%clk 0:01:12]}  Nf6 {[%clk 0:01:28]} 17. Qb4 {[%clk 0:00:45]}  Bf8 {[%clk 0:00:57]} 18. Qd4 {[%clk 0:00:32]}  Be7 {[%clk 0:00:48]} 19. Bxd7+ {[%clk 0:00:14]}  Qxd7 {[%clk 0:00:41]} 20. Ne5 {[%clk 0:00:13]}  Qc7 {[%clk 0:00:39]} 21. Ng4 {[%clk 0:00:12]}  e5 {[%clk 0:00:23]} 22. Nxe5 {[%clk 0:00:12]}  O-O {[%clk 0:00:23]} 23. Ng4 {[%clk 0:00:07]}  Nxg4 {[%clk 0:00:19]} 24. Qxg4 {[%clk 0:00:08]}  Bxa3 {[%clk 0:00:17]} 25. Nf3 {[%clk 0:00:00]}  Be7 {[%clk 0:00:17]} 0-1

[Event "December 5 Early 2023"]
[Site "https://www.chess.com"]
[Date "2023.12.05"]
[Round "5"]
[White "Yilmaz, Mustafa"]
[Black "Naroditsky, Daniel"]
[Result "1/2-1/2"]
[Board "2"]
[TimeControl "180+1"]
[WhiteFideId "6302718"]
[BlackFideId "2026961"]
[WhiteElo "2952"]
[BlackElo "3176"]
[WhiteTeam "TUR"]
[BlackTeam "USA"]
[WhiteClock "0:00:06"]
[BlackClock "0:00:04"]

1. d4 {[%clk 0:03:00]}  Nf6 {[%clk 0:03:00]} 2. c4 {[%clk 0:03:00]}  g6 {[%clk 0:03:00]} 3. Nc3 {[%clk 0:03:00]}  Bg7 {[%clk 0:03:01]} 4. e4 {[%clk 0:03:01]}  d6 {[%clk 0:03:01]} 5. Nf3 {[%clk 0:03:02]}  O-O {[%clk 0:03:02]} 6. Be2 {[%clk 0:03:02]}  e5 {[%clk 0:03:02]} 7. O-O {[%clk 0:03:03]}  Na6 {[%clk 0:03:02]} 8. Be3 {[%clk 0:03:02]}  Qe7 {[%clk 0:03:02]} 9. Bg5 {[%clk 0:03:01]}  c6 {[%clk 0:02:49]} 10. c5 {[%clk 0:03:01]}  h6 {[%clk 0:02:32]} 11. cxd6 {[%clk 0:02:49]}  Qxd6 {[%clk 0:02:33]} 12. Bxf6 {[%clk 0:01:03]}  Bxf6 {[%clk 0:02:21]} 13. dxe5 {[%clk 0:01:03]}  Bxe5 {[%clk 0:02:21]} 14. Nxe5 {[%clk 0:01:04]}  Qxe5 {[%clk 0:02:22]} 15. Bxa6 {[%clk 0:01:04]}  bxa6 {[%clk 0:02:23]} 16. Qd2 {[%clk 0:01:04]}  Kh7 {[%clk 0:02:09]} 17. f4 {[%clk 0:01:03]}  Qc5+ {[%clk 0:02:07]} 18. Qf2 {[%clk 0:01:03]}  Qxf2+ {[%clk 0:01:46]} 19. Rxf2 {[%clk 0:01:00]}  Rd8 {[%clk 0:01:46]} 20. Rc1 {[%clk 0:00:52]}  Rb8 {[%clk 0:01:40]} 21. b3 {[%clk 0:00:49]}  Rb4 {[%clk 0:01:37]} 22. Re2 {[%clk 0:00:33]}  Bg4 {[%clk 0:01:24]} 23. Rec2 {[%clk 0:00:33]}  Be6 {[%clk 0:01:01]} 24. g3 {[%clk 0:00:11]}  c5 {[%clk 0:01:01]} 25. Na4 {[%clk 0:00:11]}  c4 {[%clk 0:00:57]} 26. Nc5 {[%clk 0:00:11]}  cxb3 {[%clk 0:00:57]} 27. axb3 {[%clk 0:00:10]}  Bxb3 {[%clk 0:00:24]} 28. Nxb3 {[%clk 0:00:05]}  Rxb3 {[%clk 0:00:25]} 29. Rc7 {[%clk 0:00:06]}  Kg8 {[%clk 0:00:18]} 30. R1c2 {[%clk 0:00:06]}  Rb1+ {[%clk 0:00:05]} 31. Kg2 {[%clk 0:00:06]}  Rdb8 {[%clk 0:00:05]} 32. Rxa7 {[%clk 0:00:02]}  R8b2 {[%clk 0:00:05]} 33. Rxb2 {[%clk 0:00:03]}  Rxb2+ {[%clk 0:00:06]} 34. Kh3 {[%clk 0:00:03]}  Ra2 {[%clk 0:00:06]} 35. e5 {[%clk 0:00:02]}  h5 {[%clk 0:00:06]} 36. g4 {[%clk 0:00:02]}  hxg4+ {[%clk 0:00:04]} 37. Kxg4 {[%clk 0:00:03]}  Rxh2 {[%clk 0:00:02]} 38. Rxa6 {[%clk 0:00:03]}  Rc2 {[%clk 0:00:03]} 39. Kf3 {[%clk 0:00:03]}  Kg7 {[%clk 0:00:03]} 40. Rd6 {[%clk 0:00:04]}  Rc4 {[%clk 0:00:03]} 41. Rd3 {[%clk 0:00:03]}  Kf8 {[%clk 0:00:03]} 42. Rd6 {[%clk 0:00:03]}  Ke7 {[%clk 0:00:04]} 43. Rd3 {[%clk 0:00:03]}  Rc6 {[%clk 0:00:04]} 44. Ke4 {[%clk 0:00:03]}  Ke6 {[%clk 0:00:05]} 45. Rd4 {[%clk 0:00:03]}  Rb6 {[%clk 0:00:05]} 46. Rc4 {[%clk 0:00:04]}  Ra6 {[%clk 0:00:06]} 47. Rd4 {[%clk 0:00:04]}  Rc6 {[%clk 0:00:06]} 48. Rb4 {[%clk 0:00:05]}  Rc1 {[%clk 0:00:04]} 49. Rb6+ {[%clk 0:00:05]}  Ke7 {[%clk 0:00:05]} 50. Rb7+ {[%clk 0:00:06]}  Kf8 {[%clk 0:00:06]} 51. Kf3 {[%clk 0:00:06]}  Rc4 {[%clk 0:00:05]} 52. Ke3 {[%clk 0:00:06]}  Ra4 {[%clk 0:00:05]} 53. Kf3 {[%clk 0:00:06]}  Rc4 {[%clk 0:00:05]} 54. Kg4 {[%clk 0:00:06]}  Rc6 {[%clk 0:00:04]} 55. Kg5 {[%clk 0:00:07]}  Kg7 {[%clk 0:00:04]} 56. Re7 {[%clk 0:00:06]}  Ra6 {[%clk 0:00:03]} 57. f5 {[%clk 0:00:05]}  gxf5 {[%clk 0:00:03]} 58. Kxf5 {[%clk 0:00:06]}  Rh6 {[%clk 0:00:03]} 59. e6 {[%clk 0:00:05]}  Rf6+ {[%clk 0:00:03]} 60. Ke5 {[%clk 0:00:05]}  Rxe6+ {[%clk 0:00:03]} 61. Rxe6 {[%clk 0:00:05]}  fxe6 {[%clk 0:00:04]} 62. Kxe6 {[%clk 0:00:06]} 1/2-1/2

[Event "December 5 Early 2023"]
[Site "https://www.chess.com"]
[Date "2023.12.05"]
[Round "5"]
[White "Le, Tuan Minh"]
[Black "Kovalev, Vladislav"]
[Result "1-0"]
[Board "6"]
[TimeControl "180+1"]
[WhiteFideId "12401153"]
[BlackFideId "13504398"]
[WhiteElo "3061"]
[BlackElo "2915"]
[WhiteTeam "VIE"]
[BlackTeam "FID"]
[WhiteClock "0:00:04"]
[BlackClock "0:00:00"]

1. d4 {[%clk 0:02:55]}  Nf6 {[%clk 0:03:00]} 2. c4 {[%clk 0:02:54]}  e6 {[%clk 0:03:00]} 3. Nc3 {[%clk 0:02:54]}  Bb4 {[%clk 0:03:00]} 4. e3 {[%clk 0:02:54]}  O-O {[%clk 0:02:59]} 5. Bd2 {[%clk 0:02:54]}  b6 {[%clk 0:02:55]} 6. Bd3 {[%clk 0:02:50]}  Bb7 {[%clk 0:02:51]} 7. Nf3 {[%clk 0:02:51]}  d6 {[%clk 0:02:21]} 8. O-O {[%clk 0:02:49]}  Bxc3 {[%clk 0:02:21]} 9. Bxc3 {[%clk 0:02:49]}  Ne4 {[%clk 0:02:21]} 10. Rc1 {[%clk 0:02:37]}  Nd7 {[%clk 0:02:21]} 11. Be1 {[%clk 0:02:19]}  f5 {[%clk 0:02:20]} 12. b4 {[%clk 0:02:03]}  Ndf6 {[%clk 0:02:11]} 13. c5 {[%clk 0:01:45]}  Bd5 {[%clk 0:02:11]} 14. Qc2 {[%clk 0:01:28]}  Qe8 {[%clk 0:02:08]} 15. Nd2 {[%clk 0:01:24]}  Nxd2 {[%clk 0:01:39]} 16. Bxd2 {[%clk 0:01:18]}  Be4 {[%clk 0:00:51]} 17. f3 {[%clk 0:01:18]}  Bxd3 {[%clk 0:00:52]} 18. Qxd3 {[%clk 0:01:19]}  b5 {[%clk 0:00:39]} 19. Rce1 {[%clk 0:00:49]}  a6 {[%clk 0:00:31]} 20. e4 {[%clk 0:00:39]}  fxe4 {[%clk 0:00:31]} 21. fxe4 {[%clk 0:00:39]}  Qg6 {[%clk 0:00:32]} 22. Qe2 {[%clk 0:00:35]}  Rae8 {[%clk 0:00:27]} 23. Rf3 {[%clk 0:00:32]}  d5 {[%clk 0:00:26]} 24. exd5 {[%clk 0:00:15]}  exd5 {[%clk 0:00:27]} 25. Qf1 {[%clk 0:00:14]}  Ne4 {[%clk 0:00:24]} 26. Bf4 {[%clk 0:00:12]}  c6 {[%clk 0:00:24]} 27. h3 {[%clk 0:00:12]}  Rf7 {[%clk 0:00:22]} 28. Be5 {[%clk 0:00:12]}  Rxf3 {[%clk 0:00:21]} 29. Qxf3 {[%clk 0:00:13]}  Rf8 {[%clk 0:00:22]} 30. Qe3 {[%clk 0:00:13]}  Rf2 {[%clk 0:00:18]} 31. g3 {[%clk 0:00:11]}  Qf5 {[%clk 0:00:11]} 32. g4 {[%clk 0:00:12]}  Qf7 {[%clk 0:00:11]} 33. Re2 {[%clk 0:00:10]}  Rf3 {[%clk 0:00:10]} 34. Qc1 {[%clk 0:00:07]}  Rxh3 {[%clk 0:00:10]} 35. Rg2 {[%clk 0:00:02]}  Qf3 {[%clk 0:00:08]} 36. Qe1 {[%clk 0:00:03]}  h6 {[%clk 0:00:06]} 37. Qc1 {[%clk 0:00:01]}  Ng5 {[%clk 0:00:06]} 38. Qe1 {[%clk 0:00:01]}  Qd3 {[%clk 0:00:04]} 39. Qe2 {[%clk 0:00:02]}  Qf3 {[%clk 0:00:02]} 40. Qxf3 {[%clk 0:00:02]}  Rxf3 {[%clk 0:00:03]} 41. Re2 {[%clk 0:00:02]}  Kf7 {[%clk 0:00:03]} 42. Kg2 {[%clk 0:00:02]}  Rd3 {[%clk 0:00:02]} 43. Rf2+ {[%clk 0:00:02]}  Kg8 {[%clk 0:00:02]} 44. Bd6 {[%clk 0:00:03]}  Ne4 {[%clk 0:00:03]} 45. Rf8+ {[%clk 0:00:04]}  Kh7 {[%clk 0:00:03]} 46. Be5 {[%clk 0:00:04]}  Rd2+ {[%clk 0:00:01]} 47. Kg1 {[%clk 0:00:05]}  Rxa2 {[%clk 0:00:02]} 48. Rf7 {[%clk 0:00:06]}  Kg8 {[%clk 0:00:03]} 49. Rxg7+ {[%clk 0:00:06]}  Kf8 {[%clk 0:00:04]} 50. Rc7 {[%clk 0:00:07]}  a5 {[%clk 0:00:04]} 51. bxa5 {[%clk 0:00:07]}  b4 {[%clk 0:00:05]} 52. Rb7 {[%clk 0:00:07]}  Rxa5 {[%clk 0:00:04]} 53. Rxb4 {[%clk 0:00:08]}  Rb5 {[%clk 0:00:03]} 54. Ra4 {[%clk 0:00:08]}  Rb2 {[%clk 0:00:03]} 55. Ra6 {[%clk 0:00:08]}  Ng5 {[%clk 0:00:04]} 56. Rxc6 {[%clk 0:00:07]}  Rd2 {[%clk 0:00:04]} 57. Rf6+ {[%clk 0:00:06]}  Ke7 {[%clk 0:00:04]} 58. c6 {[%clk 0:00:07]}  Rc2 {[%clk 0:00:04]} 59. Kf1 {[%clk 0:00:06]}  Ne6 {[%clk 0:00:04]} 60. Rxh6 {[%clk 0:00:05]}  Rxc6 {[%clk 0:00:04]} 61. Rh7+ {[%clk 0:00:05]}  Kf8 {[%clk 0:00:04]} 62. Kf2 {[%clk 0:00:05]}  Rc3 {[%clk 0:00:05]} 63. Rh6 {[%clk 0:00:05]}  Ng5 {[%clk 0:00:05]} 64. Kg2 {[%clk 0:00:05]}  Ne4 {[%clk 0:00:04]} 65. Rh8+ {[%clk 0:00:04]}  Kf7 {[%clk 0:00:05]} 66. Rd8 {[%clk 0:00:04]}  Rd3 {[%clk 0:00:03]} 67. Rxd5 {[%clk 0:00:04]}  Ke6 {[%clk 0:00:04]} 68. Ra5 {[%clk 0:00:04]}  Nc3 {[%clk 0:00:02]} 69. Ra6+ {[%clk 0:00:03]}  Kd5 {[%clk 0:00:02]} 70. Rf6 {[%clk 0:00:04]}  Ne4 {[%clk 0:00:02]} 71. Rf4 {[%clk 0:00:04]}  Ng5 {[%clk 0:00:01]} 72. Rf5 {[%clk 0:00:05]}  Ne6 {[%clk 0:00:00]} 73. Rf6 {[%clk 0:00:04]} 1-0

[Event "December 5 Early 2023"]
[Site "https://www.chess.com"]
[Date "2023.12.05"]
[Round "5"]
[White "Kuzubov, Yuriy"]
[Black "Zemlyanskii, Ivan"]
[Result "0-1"]
[Board "9"]
[TimeControl "180+1"]
[WhiteFideId "14112906"]
[BlackFideId "24249971"]
[WhiteElo "2873"]
[BlackElo "3019"]
[WhiteTeam "UKR"]
[BlackTeam "RUS"]
[WhiteClock "0:00:01"]
[BlackClock "0:00:10"]

1. d4 {[%clk 0:03:00]}  d5 {[%clk 0:02:56]} 2. c4 {[%clk 0:03:00]}  e6 {[%clk 0:02:56]} 3. Nf3 {[%clk 0:03:00]}  Nf6 {[%clk 0:02:56]} 4. Nc3 {[%clk 0:03:00]}  c6 {[%clk 0:02:56]} 5. e3 {[%clk 0:02:54]}  Nbd7 {[%clk 0:02:56]} 6. Be2 {[%clk 0:02:54]}  Be7 {[%clk 0:02:48]} 7. O-O {[%clk 0:02:52]}  O-O {[%clk 0:02:46]} 8. b3 {[%clk 0:02:52]}  b6 {[%clk 0:02:47]} 9. Bb2 {[%clk 0:02:52]}  Bb7 {[%clk 0:02:47]} 10. Qc2 {[%clk 0:02:52]}  Qc7 {[%clk 0:02:32]} 11. Rac1 {[%clk 0:02:46]}  Rac8 {[%clk 0:02:29]} 12. Bd3 {[%clk 0:02:43]}  h6 {[%clk 0:02:13]} 13. Rfd1 {[%clk 0:02:41]}  Rfd8 {[%clk 0:02:08]} 14. Qe2 {[%clk 0:02:33]}  dxc4 {[%clk 0:01:59]} 15. bxc4 {[%clk 0:02:16]}  c5 {[%clk 0:01:59]} 16. h3 {[%clk 0:02:12]}  cxd4 {[%clk 0:01:26]} 17. exd4 {[%clk 0:02:13]}  Bf8 {[%clk 0:01:24]} 18. Qe3 {[%clk 0:02:05]}  Bd6 {[%clk 0:01:12]} 19. Nb5 {[%clk 0:02:02]}  Qb8 {[%clk 0:01:12]} 20. Nxd6 {[%clk 0:01:55]}  Qxd6 {[%clk 0:01:13]} 21. Bf1 {[%clk 0:01:51]}  Qb4 {[%clk 0:01:08]} 22. Ba1 {[%clk 0:01:44]}  Qa4 {[%clk 0:01:08]} 23. Rd2 {[%clk 0:01:24]}  Ne4 {[%clk 0:00:58]} 24. Rdc2 {[%clk 0:01:19]}  Nd6 {[%clk 0:00:56]} 25. Qf4 {[%clk 0:01:05]}  Nf5 {[%clk 0:00:39]} 26. Bd3 {[%clk 0:00:50]}  Ne7 {[%clk 0:00:31]} 27. d5 {[%clk 0:00:38]}  Nxd5 {[%clk 0:00:17]} 28. Qg3 {[%clk 0:00:31]}  N5f6 {[%clk 0:00:16]} 29. Ne5 {[%clk 0:00:25]}  Nxe5 {[%clk 0:00:17]} 30. Bxe5 {[%clk 0:00:25]}  Ne8 {[%clk 0:00:17]} 31. Rc3 {[%clk 0:00:18]}  Rd7 {[%clk 0:00:16]} 32. Bc2 {[%clk 0:00:17]}  Qa5 {[%clk 0:00:15]} 33. Re3 {[%clk 0:00:15]}  Rcd8 {[%clk 0:00:11]} 34. Kh2 {[%clk 0:00:15]}  Qd2 {[%clk 0:00:11]} 35. Ree1 {[%clk 0:00:14]}  Qg5 {[%clk 0:00:09]} 36. Qxg5 {[%clk 0:00:12]}  hxg5 {[%clk 0:00:10]} 37. Ba4 {[%clk 0:00:11]}  Rd2 {[%clk 0:00:09]} 38. Kg3 {[%clk 0:00:10]}  Nd6 {[%clk 0:00:07]} 39. f3 {[%clk 0:00:07]}  Nf5+ {[%clk 0:00:07]} 40. Kh2 {[%clk 0:00:07]}  Nh4 {[%clk 0:00:07]} 41. Rc2 {[%clk 0:00:05]}  Nxf3+ {[%clk 0:00:08]} 42. Kg3 {[%clk 0:00:05]}  Nxe1 {[%clk 0:00:09]} 43. Rxd2 {[%clk 0:00:01]}  Rxd2 {[%clk 0:00:10]} 0-1

[Event "December 5 Early 2023"]
[Site "https://www.chess.com"]
[Date "2023.12.05"]
[Round "5"]
[White "Andreikin, Dmitry"]
[Black "Hayrapetyan, Hovik"]
[Result "1-0"]
[Board "11"]
[TimeControl "180+1"]
[WhiteFideId "4158814"]
[BlackFideId "13302639"]
[WhiteElo "3090"]
[BlackElo "2823"]
[WhiteTeam "FID"]
[BlackTeam "ARM"]
[WhiteClock "0:00:35"]
[BlackClock "0:00:03"]

1. d4 {[%clk 0:03:00]}  Nf6 {[%clk 0:02:55]} 2. c4 {[%clk 0:03:00]}  e6 {[%clk 0:02:54]} 3. Nf3 {[%clk 0:03:00]}  d5 {[%clk 0:02:52]} 4. Bg5 {[%clk 0:03:01]}  dxc4 {[%clk 0:01:43]} 5. e4 {[%clk 0:03:00]}  Bb4+ {[%clk 0:01:38]} 6. Nc3 {[%clk 0:02:59]}  c5 {[%clk 0:01:33]} 7. Bxc4 {[%clk 0:02:57]}  cxd4 {[%clk 0:01:31]} 8. Nxd4 {[%clk 0:02:58]}  Qa5 {[%clk 0:01:29]} 9. Bd2 {[%clk 0:02:52]}  O-O {[%clk 0:01:23]} 10. Qe2 {[%clk 0:02:31]}  Qc7 {[%clk 0:01:05]} 11. Rc1 {[%clk 0:02:22]}  Nc6 {[%clk 0:00:59]} 12. Nxc6 {[%clk 0:02:19]}  Qxc6 {[%clk 0:00:55]} 13. Bd3 {[%clk 0:02:15]}  e5 {[%clk 0:00:51]} 14. O-O {[%clk 0:02:12]}  Bg4 {[%clk 0:00:43]} 15. f3 {[%clk 0:02:01]}  Bc5+ {[%clk 0:00:40]} 16. Kh1 {[%clk 0:01:57]}  Be6 {[%clk 0:00:40]} 17. b4 {[%clk 0:01:39]}  Be7 {[%clk 0:00:40]} 18. Nb5 {[%clk 0:01:24]}  Qd7 {[%clk 0:00:35]} 19. Rc7 {[%clk 0:01:22]}  Qd8 {[%clk 0:00:33]} 20. Rxb7 {[%clk 0:01:22]}  a6 {[%clk 0:00:24]} 21. Na7 {[%clk 0:01:05]}  Bd6 {[%clk 0:00:12]} 22. Bxa6 {[%clk 0:01:00]}  Bc8 {[%clk 0:00:05]} 23. Nxc8 {[%clk 0:00:55]}  Qxc8 {[%clk 0:00:06]} 24. Rb6 {[%clk 0:00:37]}  Bc7 {[%clk 0:00:03]} 25. Bxc8 {[%clk 0:00:35]}  Bxb6 {[%clk 0:00:03]} 1-0